bitfinex/quotes_ETHUSD_20241101
["timestamp","ask_amount","ask_price","bid_price","bid_amount"]
[1730484554649,0.07947378,2509.7,2509.4,4.7711]
[1730484555060,0.07947378,2509.7,2509.5,3.80392621]
[1730484555264,0.07947378,2509.8,2509.5,3.80392621]
[1730484555492,0.07947378,2509.9,2509.5,7.78876621]
[1730484555707,0.07947378,2509.9,2509.8,3.80392621]
[1730484555863,0.07947378,2510.1,2509.8,3.80392621]
[1730484556673,0.07947378,2510.1,2509.9,3.98417]
[1730484556996,0.07947378,2510.3,2509.9,0.8271]
[1730484557502,0.07947378,2510.3,2509.9,4.8112]
[1730484557705,0.07947378,2510.3,2509.9,0.8271]
[1730484558074,0.07947378,2510.3,2510.0,3.98405]
[1730484558280,0.07947378,2510.4,2510.1,3.80392621]
[1730484558716,0.07947378,2510.4,2510.1,7.78773621]
[1730484558910,0.07947378,2510.4,2510.1,3.80392621]
[1730484558911,3.98343,2510.4,2510.1,3.80392621]
[1730484559205,0.07947378,2510.3,2510.1,7.78780621]
[1730484559505,0.07947378,2510.5,2510.1,7.78780621]
[1730484560326,8.77228,2511.1,2510.5,3.98317]
[1730484560468,4.06196378,2511.0,2510.5,3.98317]
[1730484560667,4.06196378,2511.0,2510.7,3.80392621]
[1730484560668,0.07947378,2511.0,2510.7,3.80392621]
[1730484561477,3.9824,2511.1,2510.7,3.80392621]
[1730484561713,0.07947378,2511.2,2511.0,3.80392621]
[1730484561922,0.07947378,2511.3,2511.0,7.78639621]
[1730484562192,0.48609557,2512.1,2511.0,7.78639621]
[1730484562193,0.07947378,2511.5,2511.1,3.98223]
[1730484562509,0.07947378,2511.5,2511.3,3.80392621]
[1730484563316,4.06101378,2511.6,2511.3,3.80392621]
[1730484563673,0.07947378,2511.6,2511.3,3.80392621]
[1730484564397,0.8109,2511.8,2510.6,4.63562621]
[1730484564398,0.07947378,2511.8,2510.6,4.63562621]
[1730484564604,0.07947378,2511.8,2510.2,0.13758926]
[1730484564605,3.98274,2510.9,2510.3,4.63562621]
[1730484564814,4.46065778,2510.8,2510.3,8.61917621]
[1730484565013,4.06238378,2510.8,2510.3,8.61917621]
[1730484565226,3.98296,2510.7,2510.3,4.63562621]
[1730484565524,3.98296,2510.7,2510.3,0.8317]
[1730484565525,4.06258378,2510.6,2510.3,0.8317]
[1730484565816,0.07947378,2510.6,2510.3,0.8317]
[1730484566178,0.07947378,2510.6,2510.3,4.63562621]
[1730484566411,0.07947378,2510.6,2510.3,8.61918621]
[1730484566979,0.07947378,2510.7,2510.3,8.61918621]
[1730484567196,4.77911,2510.6,2510.0,3.80392621]
[1730484567395,4.06274378,2510.5,2510.1,3.9839]
[1730484567609,4.06274378,2510.5,2510.0,7.78796621]
[1730484568606,4.06274378,2510.5,2510.0,7.78798621]
[1730484569306,3.98343,2510.4,2510.0,3.80392621]
[1730484569503,3.98382,2510.2,2509.9,0.7791]
[1730484569705,0.07947378,2510.1,2509.7,7.78832621]
[1730484570228,0.07947378,2510.1,2509.6,0.7521]
[1730484570229,4.06351378,2510.1,2509.6,0.7521]
[1730484570392,4.06351378,2510.1,2509.4,3.80892621]
[1730484570393,3.98445,2509.8,2509.4,3.80892621]
[1730484570582,4.06408378,2509.7,2509.4,0.005]
[1730484570980,0.07947378,2509.7,2509.4,0.005]
[1730484571419,3.9847,2509.6,2509.4,0.005]
[1730484571717,4.06432378,2509.5,2509.4,0.005]
[1730484572226,0.07947378,2509.5,2509.4,0.005]
[1730484572587,4.06417378,2509.6,2509.4,0.005]
[1730484572984,0.07947378,2509.7,2509.4,0.005]
[1730484574192,0.07947378,2509.9,2509.4,0.005]
[1730484574392,4.06380378,2509.9,2509.4,0.005]
[1730484574724,3.98442,2509.8,2509.4,0.005]
[1730484574910,0.07947378,2509.7,2509.4,0.005]
[1730484575521,0.07947378,2509.7,2509.4,3.80892621]
[1730484575705,0.07947378,2509.8,2509.4,7.79383621]
[1730484576088,0.07947378,2509.8,2509.5,3.98483]
[1730484576290,0.07947378,2509.9,2509.5,4.74853]
[1730484576829,0.07947378,2509.9,2509.6,3.98455]
[1730484577188,0.88421738,2510.4,2509.7,3.80392621]
[1730484577390,0.07947378,2510.5,2510.1,7.78781621]
[1730484577614,4.06283378,2510.5,2510.1,3.80392621]
[1730484577815,3.98344,2510.4,2510.1,3.80392621]
[1730484578022,3.98344,2510.4,2510.0,3.98405]
[1730484578023,4.06309378,2510.3,2509.9,3.98421]
[1730484578342,3.98384,2510.2,2509.8,3.80392621]
[1730484578628,3.98407,2510.0,2509.6,3.98467]
[1730484578834,4.06354378,2510.0,2509.6,3.98467]
[1730484579210,0.07947378,2510.0,2509.5,8.55518621]
[1730484579522,4.06354378,2510.0,2509.5,8.55518621]
[1730484579729,3.98424,2509.9,2509.5,8.55518621]
[1730484579926,0.07947378,2510.0,2509.6,3.98469]
[1730484580154,0.07947378,2510.0,2509.7,3.98452]
[1730484580655,0.07947378,2510.0,2509.6,3.98467]
[1730484581150,3.98424,2509.9,2509.5,4.75126]
[1730484581325,0.07947378,2509.8,2509.4,3.99]
[1730484581750,0.07947378,2509.8,2509.6,3.98467]
[1730484581926,4.06364378,2510.0,2509.6,3.98467]
[1730484582127,4.06356378,2510.0,2509.6,4.73511]
[1730484582323,4.06356378,2510.0,2509.6,0.7505]
[1730484582524,3.98442,2509.8,2509.4,0.005]
[1730484582725,4.06384378,2509.9,2509.5,3.98483]
[1730484583415,4.06384378,2509.9,2509.4,0.005]
[1730484583787,4.06381378,2509.9,2509.4,3.98994]
[1730484583952,8.04815378,2509.9,2509.4,3.98994]
[1730484584115,7.96868,2509.9,2509.4,3.98994]
[1730484584315,0.07947378,2509.8,2509.4,3.98994]
[1730484585250,0.07947378,2509.8,2509.5,3.98484]
[1730484585551,3.98433,2509.9,2509.6,3.98467]
[1730484585552,0.07947378,2509.9,2509.6,3.98467]
[1730484585919,4.75177,2510.3,2509.8,7.78830621]
[1730484586142,4.06331378,2510.2,2509.8,7.78830621]
[1730484586311,4.94482216,2510.2,2509.8,7.78830621]
[1730484586512,4.94482216,2510.2,2509.6,3.98469]
[1730484586513,3.9839,2510.1,2509.6,3.98469]
[1730484586857,0.818,2509.9,2509.4,0.005]
[1730484587051,3.98477,2509.6,2509.4,0.005]
[1730484587351,4.06432378,2509.5,2509.4,0.005]
[1730484587564,0.07947378,2509.5,2509.4,0.005]
[1730484587859,4.06432378,2509.5,2509.4,0.005]
[1730484588073,0.07947378,2509.5,2509.4,0.005]
[1730484589137,0.07947378,2509.6,2509.4,0.005]
[1730484589336,4.06420378,2509.6,2509.4,0.005]
[1730484590238,0.07947378,2509.6,2509.4,0.005]
[1730484592043,3.98449,2509.8,2509.4,3.99001]
[1730484592044,0.07947378,2509.7,2509.4,3.99001]
[1730484592937,0.07947378,2509.7,2509.4,3.98994]
[1730484593260,0.07947378,2509.7,2509.4,0.005]
[1730484593439,0.07947378,2509.7,2509.4,3.98998]
[1730484593836,0.07947378,2509.7,2509.4,0.005]
[1730484594936,4.06392378,2509.8,2509.4,3.98999]
[1730484595450,4.06392378,2509.8,2509.4,4.74529]
[1730484596685,0.818,2509.9,2509.5,7.78877621]
[1730484596889,0.07947378,2509.8,2509.5,7.78877621]
[1730484597182,0.07947378,2509.8,2509.5,3.80392621]
[1730484597183,0.07947378,2509.7,2509.5,3.80392621]
[1730484597590,4.06414378,2509.7,2509.5,3.80392621]
[1730484597743,4.06414378,2509.7,2509.4,0.7603]
[1730484598390,3.98478,2509.6,2509.4,0.005]
[1730484599287,5.66369416,2509.7,2509.4,0.005]
[1730484599492,8.84347378,2509.7,2509.4,0.005]
[1730484599688,4.77936,2509.7,2509.4,0.005]
[1730484599859,4.06418378,2509.6,2509.4,0.005]
[1730484600048,0.07947378,2509.5,2509.4,0.005]
[1730484600390,4.06432378,2509.5,2509.4,0.005]
[1730484600588,4.94870716,2509.5,2509.4,0.005]
[1730484601446,5.73940716,2509.5,2509.4,0.005]
[1730484602386,4.85502378,2509.5,2509.4,0.005]
[1730484606351,6.63979541,2509.5,2509.4,1e-05]
[1730484606551,4.81577,2509.3,2509.2,0.005]
[1730484606772,4.89524378,2509.3,2509.2,0.005]
[1730484608067,0.07947378,2509.3,2509.2,0.005]
[1730484608295,0.07947378,2509.4,2509.2,0.005]
[1730484608756,0.82278709,2509.9,2509.2,0.005]
[1730484608757,0.07947378,2509.6,2509.3,0.7694]
[1730484608954,0.07947378,2509.8,2509.4,0.4584399]
[1730484609159,4.06395378,2509.8,2509.3,4.75449]
[1730484609684,3.98472,2509.6,2509.3,0.7694]
[1730484609872,0.07947378,2509.5,2509.2,0.005]
[1730484610560,4.06435378,2509.5,2509.2,0.005]
[1730484610754,4.78692,2509.4,2509.2,0.005]
[1730484610972,0.07947378,2509.3,2509.2,0.005]
[1730484611350,4.06434378,2509.5,2509.2,0.005]
[1730484611556,3.98509,2509.4,2509.2,0.005]
[1730484611755,0.07947378,2509.3,2509.2,0.005]
[1730484611994,0.07947378,2509.5,2509.2,3.814999]
[1730484612157,3.98461,2509.7,2509.3,4.74457]
[1730484612356,0.82278709,2509.8,2509.5,3.809999]
[1730484612703,0.07947378,2509.9,2509.5,7.794799]
[1730484612898,4.06370378,2509.9,2509.5,3.809999]
[1730484613100,3.98446,2509.8,2509.3,0.7594]
[1730484613301,3.98515,2509.4,2509.2,0.005]
[1730484613463,0.07947378,2509.3,2509.2,0.005]
[1730484614359,3.98494,2509.5,2509.2,0.005]
[1730484614360,0.07947378,2509.4,2509.2,0.005]
[1730484614771,0.07947378,2509.4,2509.2,3.814999]
[1730484615117,4.06440378,2509.5,2509.2,3.814999]
[1730484615271,4.06440378,2509.5,2509.2,0.005]
[1730484615272,3.98503,2509.4,2509.2,0.005]
[1730484615464,4.06464378,2509.3,2509.2,0.005]
[1730484616697,0.07947378,2509.3,2509.2,0.005]
[1730484617473,0.07947378,2509.4,2509.2,0.005]
[1730484617708,0.07947378,2509.4,2509.2,3.99032]
[1730484617894,0.07947378,2509.4,2509.2,0.005]
[1730484619038,0.07947378,2509.4,2509.2,3.99032]
[1730484619391,0.90226087,2509.5,2509.2,0.005]
[1730484619630,4.88713087,2509.5,2509.2,0.005]
[1730484620324,0.90226087,2509.5,2509.2,0.005]
[1730484620841,0.90226087,2509.5,2509.2,3.99033]
[1730484621018,0.07947378,2509.5,2509.4,0.7913]
[1730484621223,4.88682087,2509.7,2509.4,0.7913]
[1730484621440,4.06403378,2509.7,2509.4,0.7913]
[1730484621737,4.06403378,2509.7,2509.4,4.77631]
[1730484621738,0.07947378,2509.7,2509.4,4.77631]
[1730484621904,0.07947378,2509.7,2509.4,0.7913]
[1730484622112,0.90226087,2509.7,2509.4,0.7913]
[1730484622308,0.07947378,2509.7,2509.5,3.98485]
[1730484622555,0.07947378,2509.8,2509.4,0.7913]
[1730484622843,4.88664087,2509.8,2509.4,4.77631]
[1730484623364,0.90226087,2509.8,2509.4,4.77631]
[1730484623643,0.82278709,2510.0,2509.8,0.8078]
[1730484623819,0.82278709,2510.0,2509.6,3.98458]
[1730484623820,0.07947378,2509.9,2509.6,4.76801]
[1730484624226,0.07947378,2509.9,2509.7,3.98451]
[1730484624538,0.07947378,2509.9,2509.6,0.7834]
[1730484624747,0.90226087,2509.9,2509.6,4.76808]
[1730484624929,0.07947378,2509.9,2509.6,0.7834]
[1730484625149,4.06371378,2509.9,2509.6,0.7834]
[1730484625330,3.9846,2509.7,2509.4,0.7834]
[1730484625641,0.07947378,2509.6,2509.4,0.7834]
[1730484625832,0.07947378,2509.7,2509.4,4.76841]
[1730484626034,0.07947378,2509.7,2509.5,3.809999]
[1730484626224,0.07947378,2509.8,2509.5,7.794789]
[1730484626707,0.07947378,2509.8,2509.5,2.97335718]
[1730484626912,3.98454,2509.7,2509.5,2.97335718]
[1730484627111,0.07947378,2509.6,2509.5,2.97335718]
[1730484627618,0.07947378,2509.8,2509.5,2.97335718]
[1730484627947,0.90226087,2509.8,2509.5,2.97335718]
[1730484628254,3.98457,2509.7,2509.5,2.97335718]
[1730484628432,3.98517,2509.3,2509.2,0.005]
[1730484628631,4.86644378,2509.3,2509.2,0.005]
[1730484628850,9.0576171,2509.3,2509.2,0.005]
[1730484629071,9.80610107,2509.3,2509.2,0.005]
[1730484629377,10.21940022,2509.3,2509.2,0.005]
[1730484629575,11.88743669,2509.3,2509.2,0.005]
[1730484629936,11.88743668,2509.3,2509.2,0.005]
[1730484630188,11.88626508,2509.3,2509.2,0.005]
[1730484630373,11.88557387,2509.3,2509.2,0.005]
[1730484631253,10.37339269,2509.3,2509.2,0.005]
[1730484633276,4.77432,2508.7,2508.6,0.0836912]
[1730484633434,5.72982578,2508.7,2508.6,0.0836912]
[1730484633967,6.55359987,2508.7,2508.6,0.0836912]
[1730484634170,5.72982578,2508.7,2508.6,0.0836912]
[1730484634888,4.94162578,2508.7,2508.6,0.0836912]
[1730484635044,0.07947378,2508.7,2508.6,0.0836912]
[1730484635667,3.98612,2508.7,2508.6,0.0836912]
[1730484636051,0.07947378,2508.8,2508.6,0.0836912]
[1730484636700,4.80935409,2509.1,2508.6,0.0836912]
[1730484636701,0.07947378,2509.0,2508.7,3.98611]
[1730484636883,0.07947378,2509.0,2508.8,2.97335718]
[1730484637294,4.06516378,2509.0,2508.8,2.97335718]
[1730484637518,4.06523378,2509.0,2508.8,2.97335718]
[1730484637821,4.06523378,2509.0,2508.6,0.0836912]
[1730484637822,3.98607,2508.8,2508.6,0.0836912]
[1730484638021,0.07947378,2508.7,2508.6,0.0836912]
[1730484638395,4.06559378,2508.7,2508.6,0.0836912]
[1730484638720,0.07947378,2508.7,2508.6,0.0836912]
[1730484639401,0.07947378,2508.8,2508.6,0.0836912]
[1730484639608,0.07947378,2508.8,2508.6,4.0699012]
[1730484640103,0.07947378,2508.8,2508.6,0.0836912]
[1730484642306,4.06529378,2508.9,2508.6,0.0836912]
[1730484642638,3.98612,2508.7,2508.6,0.0836912]
[1730484642839,4.06559378,2508.7,2508.6,0.0836912]
[1730484645416,0.07947378,2508.7,2508.6,0.8342912]
[1730484645611,0.07947378,2509.1,2508.6,4.8204612]
[1730484645948,4.06498378,2509.1,2508.6,8.6295235]
[1730484646119,3.98589,2508.9,2508.6,4.6433535]
[1730484646321,0.07947378,2508.8,2508.6,0.8342912]
[1730484646543,4.06547378,2508.8,2508.6,0.0836912]
[1730484647247,0.07947378,2508.8,2508.6,0.0836912]
[1730484647660,3.98612,2508.7,2508.6,0.0836912]
[1730484648222,4.06559378,2508.7,2508.6,0.0836912]
[1730484648926,0.07947378,2508.7,2508.6,0.0836912]
[1730484649958,4.06559378,2508.7,2508.6,0.0836912]
[1730484650154,0.07947378,2508.7,2508.6,0.0836912]
[1730484652039,4.47213816,2508.7,2508.6,0.0836912]
[1730484652969,0.48601816,2508.7,2508.6,0.0836912]
[1730484653183,4.06559378,2508.7,2508.6,0.0836912]
[1730484653534,0.07947378,2508.7,2508.6,0.0836912]
[1730484654238,0.07947378,2508.8,2508.6,7.8790335]
[1730484654550,0.07947378,2508.9,2508.6,7.8790335]
[1730484654751,4.06529378,2508.9,2508.6,3.8927535]
[1730484655354,0.07947378,2508.9,2508.6,7.8789535]
[1730484655591,0.07947378,2508.9,2508.7,0.7596]
[1730484655800,0.07947378,2509.1,2508.8,3.98585]
[1730484655954,0.07947378,2509.1,2508.7,4.74569]
[1730484656589,3.98574,2509.0,2508.6,3.8927535]
[1730484656775,3.9861,2508.8,2508.6,0.0836912]
[1730484656960,4.06559378,2508.7,2508.6,0.0836912]
[1730484657158,0.07947378,2508.7,2508.6,0.0836912]
[1730484657899,4.06559378,2508.7,2508.6,0.0836912]
[1730484661262,0.07947378,2508.7,2508.6,0.0836912]
[1730484661464,4.06559378,2508.7,2508.6,0.0836912]
[1730484662180,0.07947378,2508.7,2508.6,0.0836912]
[1730484662500,0.07947378,2509.0,2508.7,0.8303]
[1730484662802,4.06513378,2509.0,2508.7,0.8303]
[1730484663005,4.06513378,2509.0,2508.8,2.97514126]
[1730484663302,4.94915616,2509.0,2508.8,2.97514126]
[1730484663601,0.07947378,2509.0,2508.8,2.97514126]
[1730484663772,3.9855,2509.1,2508.8,2.97514126]
[1730484664077,0.07947378,2509.2,2508.8,6.96097126]
[1730484664274,0.07947378,2509.2,2509.1,2.97514126]
[1730484664587,0.82377409,2509.4,2509.1,3.77814126]
[1730484664588,0.07947378,2509.4,2509.1,3.77814126]
[1730484664765,0.07947378,2509.4,2509.1,8.53985239]
[1730484665267,0.82377409,2509.7,2509.3,3.9851]
[1730484665476,0.07947378,2509.7,2509.5,2.97514126]
[1730484665765,0.90324787,2509.7,2509.5,2.97514126]
[1730484665968,0.07947378,2509.7,2509.5,2.97514126]
[1730484666532,4.06401378,2509.7,2509.5,3.78894126]
[1730484667004,3.98469,2509.6,2509.5,2.97514126]
[1730484667205,4.87177079,2509.7,2509.5,2.92514126]
[1730484667376,4.95124457,2509.7,2509.5,2.92514126]
[1730484667811,0.07947378,2509.7,2509.5,2.92514126]
[1730484668815,4.06401378,2509.7,2509.5,2.92514126]
[1730484669983,0.07947378,2509.7,2509.5,2.92514126]
[1730484672138,3.98462,2509.7,2509.5,2.92514126]
[1730484672297,0.07947378,2509.6,2509.5,2.92514126]
[1730484673516,4.06385378,2509.8,2509.5,2.92514126]
[1730484674119,3.98465,2509.7,2509.5,2.92514126]
[1730484674314,0.07947378,2509.6,2509.5,2.92514126]
[1730484674491,4.06416378,2509.6,2509.5,2.92514126]
[1730484674699,0.07947378,2509.6,2509.5,2.92514126]
[1730484675832,0.82377409,2510.0,2509.6,0.84489685]
[1730484675984,4.88696787,2510.3,2509.9,4.74938]
[1730484676190,4.06319378,2510.3,2510.2,2.97514126]
[1730484676837,3.98341,2510.5,2510.2,2.97514126]
[1730484677122,0.07947378,2510.4,2510.3,0.7592]
[1730484677332,4.06289378,2510.4,2510.3,0.7592]
[1730484677898,0.07947378,2510.4,2510.3,0.7592]
[1730484678236,4.06260378,2510.6,2510.3,0.7592]
[1730484678532,0.07947378,2510.6,2510.3,0.7592]
[1730484678738,7.96668,2510.5,2510.3,0.7592]
[1730484678900,0.07947378,2510.4,2510.3,0.7592]
[1730484680237,0.07947378,2510.6,2510.3,0.7592]
[1730484680531,4.06256378,2510.7,2510.5,2.97514126]
[1730484680744,3.98358,2510.3,2510.2,2.97514126]
[1730484680902,4.06305378,2510.3,2510.2,2.97514126]
[1730484681298,3.98322,2510.6,2510.2,2.97514126]
[1730484681496,3.98345,2510.4,2510.2,2.97514126]
[1730484682705,7.96699,2510.4,2510.2,2.97514126]
[1730484682904,0.07947378,2510.3,2510.2,2.97514126]
[1730484683340,4.06276378,2510.5,2510.2,2.97514126]
[1730484683645,3.98346,2510.4,2510.2,2.97514126]
[1730484684845,4.06271378,2510.6,2510.2,2.97514126]
[1730484685020,4.50801702,2510.5,2510.2,2.97514126]
[1730484685442,3.98342,2510.4,2510.2,2.97514126]
[1730484686319,0.6042008,2510.5,2510.2,2.97514126]
[1730484686546,3.98263,2510.9,2510.3,3.98358]
[1730484686710,4.06228378,2510.8,2510.5,3.73574126]
[1730484687358,3.82377409,2511.4,2510.6,0.7606]
[1730484687359,3.98249,2511.0,2510.6,0.7606]
[1730484687507,0.87596078,2510.9,2510.8,2.97514126]
[1730484687708,3.98249,2511.0,2510.8,2.97514126]
[1730484687709,0.07947378,2511.0,2510.8,2.97514126]
[1730484687904,4.06197378,2511.0,2510.8,2.97514126]
[1730484688150,3.98263,2510.9,2510.8,2.97514126]
[1730484688319,3.98283,2510.8,2510.5,3.73734126]
[1730484688527,3.98283,2510.8,2510.5,7.72060126]
[1730484688528,0.07947378,2510.8,2510.5,7.72060126]
[1730484689488,0.07947378,2510.9,2510.7,3.98295]
[1730484689695,0.07947378,2511.1,2510.8,6.95793126]
[1730484689992,4.06170378,2511.2,2510.8,6.95793126]
[1730484690197,4.06170378,2511.2,2510.9,0.7612]
[1730484690379,3.98223,2511.2,2510.9,0.7612]
[1730484690551,0.07947378,2511.3,2510.9,4.74375]
[1730484690756,4.06150378,2511.3,2510.9,4.74375]
[1730484691174,0.07947378,2511.3,2511.1,2.97514126]
[1730484691404,3.98191,2511.4,2511.1,2.97514126]
[1730484691562,0.07947378,2511.3,2511.1,2.97514126]
[1730484692182,0.07947378,2511.4,2511.1,2.97514126]
[1730484692455,0.07947378,2511.4,2511.1,6.95737126]
[1730484692706,0.07947378,2511.7,2511.3,3.982]
[1730484692862,1.23566114,2512.5,2511.7,3.98134]
[1730484692863,3.98081,2512.1,2511.7,3.98134]
[1730484693069,3.98081,2512.1,2512.0,2.97514126]
[1730484694199,3.98073,2512.1,2512.0,2.97514126]
[1730484694516,3.98051,2512.3,2512.0,2.97514126]
[1730484694867,3.9806,2512.2,2512.0,2.97514126]
[1730484695188,4.06020378,2512.1,2511.8,0.8285]
[1730484695694,0.07947378,2512.1,2511.8,0.8285]
[1730484696003,4.06005378,2512.2,2512.0,2.97514126]
[1730484696299,3.98073,2512.1,2512.0,2.97514126]
[1730484696699,4.06020378,2512.1,2512.0,2.97514126]
[1730484697210,1.75846116,2512.1,2511.5,0.8256]
[1730484697417,3.98107,2511.9,2511.5,4.80727]
[1730484697584,0.07947378,2511.9,2511.7,2.97514126]
[1730484697770,0.07947378,2512.1,2511.7,2.97514126]
[1730484697975,3.98089,2512.0,2511.7,2.97514126]
[1730484698208,4.46622916,2512.1,2511.7,2.97514126]
[1730484698415,4.46622916,2512.1,2511.7,6.95649126]
[1730484698596,3.98043,2512.3,2512.0,2.97514126]
[1730484699010,0.07947378,2512.2,2512.0,2.97514126]
[1730484699224,3.98042,2512.3,2512.0,2.97514126]
[1730484699429,0.07947378,2512.2,2512.0,2.97514126]
[1730484699936,7.96092,2512.3,2512.0,2.97514126]
[1730484699937,3.98048,2512.3,2512.0,2.97514126]
[1730484700133,3.98026,2512.4,2512.0,2.97514126]
[1730484700452,3.98004,2512.6,2512.0,2.97514126]
[1730484700453,3.98004,2512.6,2512.3,2.97514126]
[1730484700596,7.9601,2512.6,2512.3,2.97514126]
[1730484700796,7.96009,2512.6,2512.3,2.97514126]
[1730484700997,3.98004,2512.6,2512.3,2.97514126]
[1730484701407,3.98013,2512.5,2512.3,2.97514126]
[1730484701605,3.98042,2512.3,2512.1,0.7599]
[1730484701801,4.79357,2512.8,2512.1,0.7599]
[1730484701802,3.98018,2512.5,2512.1,0.7599]
[1730484702032,0.07947378,2512.4,2512.1,0.7599]
[1730484702602,3.97987,2512.7,2512.3,2.97514126]
[1730484702795,4.05851635,2512.6,2512.3,2.97514126]
[1730484703112,3.97978,2512.7,2512.3,6.95555126]
[1730484703431,0.07857635,2512.6,2512.3,2.97514126]
[1730484703734,4.05851635,2512.6,2512.3,2.97514126]
[1730484704559,0.07857635,2512.6,2512.3,2.97514126]
[1730484704739,4.05859635,2512.6,2512.3,4.14475639]
[1730484704935,4.05859635,2512.6,2512.3,2.97514126]
[1730484705134,3.98016,2512.5,2512.3,2.97514126]
[1730484705339,0.07857635,2512.4,2511.9,0.8311]
[1730484705565,0.8155,2512.1,2511.6,0.8311]
[1730484705774,3.98122,2511.8,2511.3,0.8311]
[1730484706077,0.07857635,2511.7,2511.3,2.00815813]
[1730484706244,4.05967635,2511.9,2511.4,6.95684126]
[1730484706432,3.98138,2511.7,2511.4,2.97514126]
[1730484706830,4.05995635,2511.7,2511.4,2.97514126]
[1730484707838,0.07857635,2511.7,2511.4,6.95697126]
[1730484708158,3.98132,2511.8,2511.4,2.97514126]
[1730484708363,0.07857635,2511.7,2511.4,4.15216439]
[1730484708528,4.05997635,2511.7,2511.4,4.15216439]
[1730484708733,4.05997635,2511.7,2511.4,2.97514126]
[1730484709667,4.05978635,2511.8,2511.4,6.95697126]
[1730484709875,3.98139,2511.7,2511.4,2.97514126]
[1730484710036,3.98161,2511.6,2511.4,2.97514126]
[1730484710232,4.06018635,2511.6,2511.4,2.97514126]
[1730484710735,3.98137,2511.7,2511.4,2.97514126]
[1730484712099,0.07857635,2511.6,2511.1,0.7574]
[1730484712403,0.07857635,2511.6,2511.1,2.97514126]
[1730484712563,7.96349,2511.5,2511.1,2.97514126]
[1730484712762,0.07857635,2511.4,2511.1,2.97514126]
[1730484713298,0.07857635,2511.4,2511.1,4.14489039]
[1730484713656,4.06054635,2511.4,2511.1,4.14489039]
[1730484714057,8.04248635,2511.4,2511.1,4.14489039]
[1730484714296,4.74986,2511.7,2510.9,0.7574]
[1730484714456,3.98224,2511.2,2510.8,2.97514126]
[1730484714657,4.06100635,2511.1,2510.8,2.97514126]
[1730484714991,0.07857635,2511.1,2510.8,2.97514126]
[1730484715297,4.06092635,2511.1,2510.8,2.97514126]
[1730484715863,0.07857635,2511.1,2510.8,2.97514126]
[1730484716518,4.06091635,2511.1,2510.8,2.97514126]
[1730484716857,0.8068,2511.0,2510.8,2.97514126]
[1730484717201,4.06093635,2511.1,2510.6,4.74073]
[1730484717358,4.06080635,2511.2,2510.8,2.97514126]
[1730484718260,4.06080635,2511.2,2510.8,6.95789126]
[1730484718462,4.06080635,2511.2,2510.8,2.97514126]
[1730484718964,4.06080635,2511.2,2510.8,6.95792126]
[1730484719163,4.06080635,2511.2,2510.8,2.97514126]
[1730484719391,4.06080635,2511.2,2510.8,4.27369087]
[1730484719788,0.07857635,2511.2,2510.8,8.25647087]
[1730484719988,4.06059635,2511.3,2510.9,0.7992]
[1730484720189,4.06059635,2511.3,2510.9,4.78183]
[1730484720389,3.98225,2511.2,2510.9,0.7992]
[1730484720688,3.98225,2511.2,2511.0,0.90556609]
[1730484720885,4.06082635,2511.2,2511.0,0.90556609]
[1730484721415,3.98225,2511.2,2511.0,0.90556609]
[1730484721631,4.06082635,2511.2,2511.0,0.90556609]
[1730484722522,4.06059635,2511.3,2511.0,0.90556609]
[1730484722723,3.98194,2511.4,2511.1,3.54387787]
[1730484722930,0.07857635,2511.3,2511.1,3.54387787]
[1730484723219,3.98215,2511.2,2511.0,0.90556609]
[1730484725021,3.98215,2511.2,2510.9,0.7992]
[1730484725886,0.07857635,2511.1,2510.8,2.97514126]
[1730484726088,4.06090635,2511.1,2510.8,2.97514126]
[1730484726734,4.06088635,2511.1,2510.8,2.97514126]
[1730484726953,0.07857635,2511.1,2510.8,2.97514126]
[1730484727457,4.06092635,2511.1,2510.8,2.97514126]
[1730484727627,3.98252,2511.0,2510.8,2.97514126]
[1730484727831,0.8234,2511.2,2510.8,2.97514126]
[1730484728014,3.98263,2510.9,2510.8,2.97514126]
[1730484728212,3.98304,2510.7,2510.5,2.97514126]
[1730484728418,0.07857635,2510.7,2510.5,0.37366413]
[1730484729141,3.98296,2510.7,2510.5,0.37366413]
[1730484729352,3.98279,2510.8,2510.5,0.37366413]
[1730484729538,0.07857635,2510.7,2510.5,0.37366413]
[1730484729714,3.98279,2510.8,2510.5,3.34880539]
[1730484729915,3.98266,2510.9,2510.5,0.37366413]
[1730484730217,0.07857635,2510.8,2510.5,4.35686413]
[1730484730514,4.06121635,2510.9,2510.6,0.91017041]
[1730484730729,0.07857635,2510.9,2510.4,0.7615]
[1730484730934,3.98321,2510.6,2510.2,2.97514126]
[1730484731112,0.7508,2510.8,2510.1,4.75139]
[1730484731113,3.98353,2510.4,2510.1,0.7675]
[1730484731560,4.06210635,2510.4,2510.1,0.7675]
[1730484732215,3.9837,2510.3,2509.8,0.8284]
[1730484732417,7.96737,2510.3,2509.9,6.95935126]
[1730484732628,3.98367,2510.3,2509.9,6.95935126]
[1730484732851,3.98374,2510.2,2509.9,2.97514126]
[1730484733419,0.07857635,2510.3,2509.9,2.97514126]
[1730484733420,4.06223635,2510.3,2509.9,2.97514126]
[1730484734663,4.06216635,2510.3,2509.9,6.95929126]
[1730484734954,3.98374,2510.2,2509.9,2.97514126]
[1730484735157,3.9834,2510.5,2510.0,3.98395]
[1730484735345,3.9834,2510.5,2510.3,0.7576]
[1730484735513,7.96677,2510.5,2510.3,0.7576]
[1730484735719,7.96672,2510.5,2510.3,0.7576]
[1730484736058,3.98225,2511.2,2510.8,0.7576]
[1730484736266,0.7548,2511.3,2511.0,2.97514126]
[1730484736415,3.98217,2511.2,2511.0,2.97514126]
[1730484737055,0.83337635,2511.3,2510.7,2.97514126]
[1730484737056,3.9827,2510.9,2510.7,2.97514126]
[1730484737649,4.06127635,2510.9,2510.7,2.97514126]
[1730484737845,0.07857635,2510.9,2510.7,2.97514126]
[1730484738033,3.98247,2511.0,2510.7,2.97514126]
[1730484738229,0.07857635,2511.1,2510.7,2.97514126]
[1730484738461,0.07857635,2511.1,2510.7,6.95807126]
[1730484738666,4.06092635,2511.1,2510.7,2.97514126]
[1730484738845,3.84545922,2511.1,2510.7,2.97514126]
[1730484739140,3.98249,2511.0,2510.7,2.97514126]
[1730484740163,3.98221,2511.2,2510.7,2.97514126]
[1730484740164,3.98234,2511.1,2510.7,2.97514126]
[1730484740868,3.98221,2511.2,2510.7,2.97514126]
[1730484741034,3.98244,2511.1,2510.7,2.97514126]